[Event "Early-Titled-Tuesday-Blitz-April-23-2024"]
[Site "Chess.com"]
[Date "2024.04.23"]
[Round "6"]
[White "Levanzovsky"]
[Black "temiksmozg"]
[Result "0-1"]
[WhiteElo "2517"]
[BlackElo "2668"]
[TimeControl "180+1"]
[EndTime "9:07:15 PDT"]
[Termination "temiksmozg won by resignation"]

1. e4 {[%clk 0:03:00.9]} 1... e5 {[%clk 0:02:57.5]} 2. Nf3 {[%clk 0:03:01.4]}
2... Nc6 {[%clk 0:02:56.6]} 3. Bc4 {[%clk 0:03:02]} 3... Bc5 {[%clk 0:02:55]} 4.
c3 {[%clk 0:03:02.4]} 4... Nf6 {[%clk 0:02:53.9]} 5. d3 {[%clk 0:03:03]} 5... d6
{[%clk 0:02:52]} 6. b4 {[%clk 0:03:03.1]} 6... Bb6 {[%clk 0:02:51.6]} 7. a4
{[%clk 0:03:04]} 7... a5 {[%clk 0:02:51.6]} 8. b5 {[%clk 0:03:04.4]} 8... Ne7
{[%clk 0:02:51.8]} 9. Nbd2 {[%clk 0:03:05.3]} 9... h6 {[%clk 0:02:49.8]} 10. O-O
{[%clk 0:03:04.8]} 10... O-O {[%clk 0:02:49.1]} 11. Bb3 {[%clk 0:03:04]} 11...
Be6 {[%clk 0:02:47.4]} 12. Bxe6 {[%clk 0:03:03.4]} 12... fxe6 {[%clk 0:02:47.8]}
13. Nc4 {[%clk 0:03:04.3]} 13... Ba7 {[%clk 0:02:42.5]} 14. Be3 {[%clk
0:03:03.6]} 14... Bxe3 {[%clk 0:02:41.9]} 15. Nxe3 {[%clk 0:03:04.3]} 15... b6
{[%clk 0:02:41.7]} 16. Qb3 {[%clk 0:03:04.8]} 16... Qd7 {[%clk 0:02:41.8]} 17.
Rfe1 {[%clk 0:03:03]} 17... Kh7 {[%clk 0:02:40.5]} 18. Rad1 {[%clk 0:03:02.2]}
18... Ng6 {[%clk 0:02:40.5]} 19. d4 {[%clk 0:03:02.4]} 19... exd4 {[%clk
0:02:41.4]} 20. Nxd4 {[%clk 0:02:57.1]} 20... Rae8 {[%clk 0:02:41.3]} 21. f3
{[%clk 0:02:48.2]} 21... Nh5 {[%clk 0:02:25.1]} 22. Nc6 {[%clk 0:02:38.2]} 22...
Qf7 {[%clk 0:02:18.7]} 23. Qc4 {[%clk 0:02:37.4]} 23... Ngf4 {[%clk 0:02:15.6]}
24. Rd2 {[%clk 0:02:37.4]} 24... Qg6 {[%clk 0:02:14.5]} 25. e5 {[%clk
0:02:27.7]} 25... d5 {[%clk 0:02:12.1]} 26. Qa2 {[%clk 0:02:28.3]} 26... Nd3
{[%clk 0:02:02.7]} 27. Red1 {[%clk 0:02:17]} 27... Nc5 {[%clk 0:02:01.9]} 28. c4
{[%clk 0:02:14.2]} 28... Rxf3 {[%clk 0:01:56.5]} 29. Nf1 {[%clk 0:01:55]} 29...
Nf4 {[%clk 0:01:49.9]} 30. Kh1 {[%clk 0:01:49.1]} 30... Rc3 {[%clk 0:01:38.6]}
31. cxd5 {[%clk 0:01:49.2]} 31... Nxd5 {[%clk 0:01:38.8]} 32. Ng3 {[%clk
0:01:45.4]} 32... Rf8 {[%clk 0:01:37.4]} 33. Rxd5 {[%clk 0:01:36.5]} 33... exd5
{[%clk 0:01:37.4]} 34. Qxd5 {[%clk 0:01:37.4]} 34... Rd3 {[%clk 0:01:30.2]} 35.
Rxd3 {[%clk 0:01:31.7]} 35... Nxd3 {[%clk 0:01:31.1]} 36. Kg1 {[%clk 0:01:11.8]}
36... Nf4 {[%clk 0:01:25.6]} 37. Qd1 {[%clk 0:01:04.9]} 37... h5 {[%clk
0:01:16.4]} 38. Ne7 {[%clk 0:00:48.2]} 38... Qg5 {[%clk 0:01:09.1]} 39. Qc2+
{[%clk 0:00:44.2]} 39... g6 {[%clk 0:01:09]} 40. Nc6 {[%clk 0:00:36.2]} 40... h4
{[%clk 0:01:05.2]} 41. Ne4 {[%clk 0:00:36.7]} 41... Nh3+ {[%clk 0:01:03.5]} 0-1

[Event "Early-Titled-Tuesday-Blitz-April-23-2024"]
[Site "Chess.com"]
[Date "2024.04.23"]
[Round "6"]
[White "FaustinoOro"]
[Black "marcodobrikov"]
[Result "0-1"]
[WhiteElo "2904"]
[BlackElo "2706"]
[TimeControl "180+1"]
[EndTime "9:07:18 PDT"]
[Termination "marcodobrikov won by checkmate"]

1. e4 {[%clk 0:03:00.9]} 1... c5 {[%clk 0:02:58.9]} 2. Nf3 {[%clk 0:03:00.3]}
2... d6 {[%clk 0:02:58.9]} 3. Bb5+ {[%clk 0:02:58.4]} 3... Bd7 {[%clk
0:02:57.4]} 4. Bxd7+ {[%clk 0:02:58.4]} 4... Qxd7 {[%clk 0:02:57.9]} 5. O-O
{[%clk 0:02:58.3]} 5... Nc6 {[%clk 0:02:58.7]} 6. c4 {[%clk 0:02:58]} 6... e5
{[%clk 0:02:56.8]} 7. Nc3 {[%clk 0:02:57.4]} 7... Nge7 {[%clk 0:02:55.3]} 8. d3
{[%clk 0:02:52.3]} 8... Nd4 {[%clk 0:02:55.3]} 9. Nxd4 {[%clk 0:02:48.8]} 9...
cxd4 {[%clk 0:02:54.9]} 10. Ne2 {[%clk 0:02:49.4]} 10... Nc6 {[%clk 0:02:50.1]}
11. f4 {[%clk 0:02:47.8]} 11... Be7 {[%clk 0:02:49.6]} 12. Ng3 {[%clk
0:02:46.8]} 12... O-O {[%clk 0:02:48.2]} 13. Nf5 {[%clk 0:02:45.7]} 13... Bf6
{[%clk 0:02:38.5]} 14. fxe5 {[%clk 0:02:36.1]} 14... dxe5 {[%clk 0:02:28.3]} 15.
Qf3 {[%clk 0:02:28.1]} 15... Kh8 {[%clk 0:02:27]} 16. Bd2 {[%clk 0:02:26]} 16...
Ne7 {[%clk 0:02:21.3]} 17. Ng3 {[%clk 0:02:05.1]} 17... a5 {[%clk 0:02:16.6]}
18. Nh5 {[%clk 0:01:57]} 18... Ra6 {[%clk 0:02:16.8]} 19. Qg3 {[%clk 0:01:49]}
19... Ng6 {[%clk 0:02:14.5]} 20. Nxf6 {[%clk 0:01:47.9]} 20... gxf6 {[%clk
0:02:14.1]} 21. Rf5 {[%clk 0:01:40]} 21... Rg8 {[%clk 0:02:07.8]} 22. Qf2 {[%clk
0:01:38.2]} 22... Qe7 {[%clk 0:01:37.6]} 23. Rf1 {[%clk 0:01:34.4]} 23... Kg7
{[%clk 0:01:35.7]} 24. h4 {[%clk 0:01:29.8]} 24... Nf8 {[%clk 0:01:27.2]} 25. h5
{[%clk 0:01:29]} 25... Nd7 {[%clk 0:01:25.8]} 26. Qh4 {[%clk 0:01:18.8]} 26...
Kh8 {[%clk 0:01:21.8]} 27. Kh2 {[%clk 0:01:14.3]} 27... a4 {[%clk 0:01:20.7]}
28. g4 {[%clk 0:01:08.7]} 28... Rb6 {[%clk 0:01:20.7]} 29. Bc1 {[%clk
0:01:06.5]} 29... Qe6 {[%clk 0:01:14.7]} 30. g5 {[%clk 0:01:00.8]} 30... fxg5
{[%clk 0:01:08.6]} 31. Bxg5 {[%clk 0:01:01.7]} 31... Rxb2+ {[%clk 0:01:07.5]}
32. Kh1 {[%clk 0:00:55.8]} 32... Rxa2 {[%clk 0:00:49.3]} 33. Rxf7 {[%clk
0:00:40.6]} 33... Rxg5 {[%clk 0:00:48.7]} 34. Qxg5 {[%clk 0:00:41.5]} 34... Qh3+
{[%clk 0:00:39.7]} 35. Kg1 {[%clk 0:00:41.7]} 35... Qh2# {[%clk 0:00:36.6]} 0-1

[Event "Early-Titled-Tuesday-Blitz-April-23-2024"]
[Site "Chess.com"]
[Date "2024.04.23"]
[Round "6"]
[White "Zhigalko_Sergei"]
[Black "HamedWafa4"]
[Result "1-0"]
[WhiteElo "2934"]
[BlackElo "2729"]
[TimeControl "180+1"]
[EndTime "9:07:18 PDT"]
[Termination "Zhigalko_Sergei won by resignation"]

1. e4 {[%clk 0:03:00.9]} 1... d6 {[%clk 0:02:56.2]} 2. d4 {[%clk 0:03:01.1]}
2... Nf6 {[%clk 0:02:55.4]} 3. Nc3 {[%clk 0:03:01.6]} 3... e5 {[%clk 0:02:53.5]}
4. Nf3 {[%clk 0:03:02]} 4... Nbd7 {[%clk 0:02:53.5]} 5. Bc4 {[%clk 0:03:02.3]}
5... Be7 {[%clk 0:02:53.9]} 6. O-O {[%clk 0:03:03]} 6... O-O {[%clk 0:02:54]} 7.
Re1 {[%clk 0:03:03.8]} 7... c6 {[%clk 0:02:54]} 8. a4 {[%clk 0:03:04.4]} 8... h6
{[%clk 0:02:51.9]} 9. h3 {[%clk 0:03:02.7]} 9... Re8 {[%clk 0:02:51.7]} 10. Be3
{[%clk 0:02:52.9]} 10... Qc7 {[%clk 0:02:51.2]} 11. Ba2 {[%clk 0:02:49.2]} 11...
Nf8 {[%clk 0:02:48.7]} 12. Nh4 {[%clk 0:02:31.2]} 12... Nxe4 {[%clk 0:02:12.7]}
13. Nxe4 {[%clk 0:02:31.2]} 13... Bxh4 {[%clk 0:02:13]} 14. Qh5 {[%clk 0:02:32]}
14... Qe7 {[%clk 0:01:36.5]} 15. Nxd6 {[%clk 0:02:12.9]} 15... g6 {[%clk
0:01:28.4]} 16. Bxf7+ {[%clk 0:02:00.8]} 16... Qxf7 {[%clk 0:01:24.8]} 17. Qxh4
{[%clk 0:01:59.7]} 17... Qe7 {[%clk 0:01:21.1]} 18. Qxe7 {[%clk 0:01:58.1]}
18... Rxe7 {[%clk 0:01:22]} 19. Bxh6 {[%clk 0:01:57]} 19... Bf5 {[%clk
0:01:18.3]} 20. Nxf5 {[%clk 0:01:52.6]} 20... gxf5 {[%clk 0:01:18.1]} 21. Bxf8
{[%clk 0:01:52.9]} 21... Kxf8 {[%clk 0:01:17.8]} 22. dxe5 {[%clk 0:01:41]} 22...
Rd8 {[%clk 0:01:17.5]} 23. Re2 {[%clk 0:01:41.5]} 23... Rd4 {[%clk 0:01:15.9]}
24. b3 {[%clk 0:01:40.9]} 24... a5 {[%clk 0:01:15.8]} 25. Rae1 {[%clk
0:01:39.7]} 25... Kf7 {[%clk 0:01:16.1]} 26. g3 {[%clk 0:01:39.2]} 26... Ke6
{[%clk 0:01:16.5]} 27. f4 {[%clk 0:01:38]} 27... Rh7 {[%clk 0:01:16.2]} 28. Kg2
{[%clk 0:01:38]} 28... Rg7 {[%clk 0:01:16.8]} 29. Kf3 {[%clk 0:01:36.2]} 29...
Rh7 {[%clk 0:01:17.2]} 30. Rh1 {[%clk 0:01:33]} 30... b5 {[%clk 0:01:15.3]} 31.
Re3 {[%clk 0:01:06]} 31... bxa4 {[%clk 0:01:09.9]} 32. bxa4 {[%clk 0:01:05.9]}
32... Rxa4 {[%clk 0:01:10.7]} 33. Rc3 {[%clk 0:01:05.8]} 33... Rc7 {[%clk
0:01:00.5]} 34. Rd1 {[%clk 0:01:05.5]} 34... Ke7 {[%clk 0:00:53.7]} 35. g4
{[%clk 0:01:04]} 35... fxg4+ {[%clk 0:00:50.4]} 36. hxg4 {[%clk 0:01:04.9]}
36... c5 {[%clk 0:00:50]} 37. f5 {[%clk 0:01:02]} 37... Rb4 {[%clk 0:00:50]} 38.
Rh1 {[%clk 0:00:57.1]} 38... Kf8 {[%clk 0:00:44.9]} 39. e6 {[%clk 0:00:51.7]}
39... a4 {[%clk 0:00:44.2]} 40. f6 {[%clk 0:00:50.3]} 1-0

[Event "Early-Titled-Tuesday-Blitz-April-23-2024"]
[Site "Chess.com"]
[Date "2024.04.23"]
[Round "6"]
[White "GM_dmitrij"]
[Black "AlphaGoosee"]
[Result "1-0"]
[WhiteElo "2994"]
[BlackElo "2630"]
[TimeControl "180+1"]
[EndTime "9:07:18 PDT"]
[Termination "GM_dmitrij won on time"]

1. c4 {[%clk 0:03:00.9]} 1... e5 {[%clk 0:03:00.1]} 2. g3 {[%clk 0:03:00.3]}
2... Nf6 {[%clk 0:02:59.9]} 3. Bg2 {[%clk 0:03:00.8]} 3... Bc5 {[%clk 0:03:00]}
4. Nc3 {[%clk 0:03:00.5]} 4... O-O {[%clk 0:02:48.7]} 5. Nf3 {[%clk 0:03:00.1]}
5... Nc6 {[%clk 0:02:18.6]} 6. Nxe5 {[%clk 0:02:55.5]} 6... Nxe5 {[%clk
0:02:15.1]} 7. d4 {[%clk 0:02:55]} 7... Bd6 {[%clk 0:02:14.2]} 8. c5 {[%clk
0:02:54.2]} 8... Be7 {[%clk 0:02:10.9]} 9. dxe5 {[%clk 0:02:53.7]} 9... Ng4
{[%clk 0:02:11.4]} 10. Qd4 {[%clk 0:02:47.7]} 10... d6 {[%clk 0:02:08.9]} 11.
cxd6 {[%clk 0:02:47.8]} 11... cxd6 {[%clk 0:02:08.6]} 12. exd6 {[%clk
0:02:48.7]} 12... Bf6 {[%clk 0:01:55]} 13. Qd1 {[%clk 0:02:44.9]} 13... Be6
{[%clk 0:01:54.4]} 14. O-O {[%clk 0:02:42.7]} 14... Qb6 {[%clk 0:01:49.7]} 15.
h3 {[%clk 0:02:22.2]} 15... Ne5 {[%clk 0:01:39.2]} 16. Nd5 {[%clk 0:02:22.7]}
16... Bxd5 {[%clk 0:01:38]} 17. Qxd5 {[%clk 0:02:23.6]} 17... Nc6 {[%clk
0:01:34.4]} 18. Be3 {[%clk 0:02:18]} 18... Qb4 {[%clk 0:01:19.9]} 19. Rab1
{[%clk 0:02:08.4]} 19... Rfd8 {[%clk 0:01:16.8]} 20. Rfd1 {[%clk 0:02:08.1]}
20... Qa4 {[%clk 0:01:11]} 21. b4 {[%clk 0:02:06.7]} 21... Rab8 {[%clk
0:01:07.8]} 22. b5 {[%clk 0:02:04.5]} 22... Ne5 {[%clk 0:01:00.6]} 23. Bf4
{[%clk 0:01:50.6]} 23... Nd7 {[%clk 0:00:52.1]} 24. Rbc1 {[%clk 0:01:39.3]}
24... a6 {[%clk 0:00:42.1]} 25. bxa6 {[%clk 0:01:34.2]} 25... bxa6 {[%clk
0:00:43]} 26. Qc4 {[%clk 0:01:29.5]} 26... Qa5 {[%clk 0:00:35.9]} 27. Rb1 {[%clk
0:01:23.3]} 27... Ne5 {[%clk 0:00:29.6]} 28. Qc7 {[%clk 0:01:14.1]} 28... Rxb1
{[%clk 0:00:23.5]} 29. Rxb1 {[%clk 0:01:11.6]} 29... Qxa2 {[%clk 0:00:02.1]} 30.
Rc1 {[%clk 0:01:11.4]} 30... Qa3 {[%clk 0:00:01.4]} 31. Bxe5 {[%clk 0:01:10.4]}
1-0

[Event "Early-Titled-Tuesday-Blitz-April-23-2024"]
[Site "Chess.com"]
[Date "2024.04.23"]
[Round "6"]
[White "Zohid6"]
[Black "Fantastic_Power"]
[Result "1-0"]
[WhiteElo "2956"]
[BlackElo "2747"]
[TimeControl "180+1"]
[EndTime "9:07:20 PDT"]
[Termination "Zohid6 won on time"]

1. e4 {[%clk 0:03:00.9]} 1... c5 {[%clk 0:02:57.6]} 2. Nf3 {[%clk 0:02:59.9]}
2... Nf6 {[%clk 0:02:53]} 3. e5 {[%clk 0:02:59.5]} 3... Nd5 {[%clk 0:02:53.6]}
4. Nc3 {[%clk 0:02:59.6]} 4... e6 {[%clk 0:02:54.3]} 5. Ne4 {[%clk 0:02:59]}
5... f5 {[%clk 0:02:54.6]} 6. exf6 {[%clk 0:02:54.1]} 6... Nxf6 {[%clk
0:02:54.6]} 7. Bd3 {[%clk 0:02:43.4]} 7... d5 {[%clk 0:02:47.7]} 8. Nxf6+ {[%clk
0:02:42.1]} 8... Qxf6 {[%clk 0:02:48.6]} 9. O-O {[%clk 0:02:40.8]} 9... Nc6
{[%clk 0:02:41.9]} 10. c3 {[%clk 0:02:21.5]} 10... Bd6 {[%clk 0:02:38.4]} 11.
Bc2 {[%clk 0:02:20.4]} 11... O-O {[%clk 0:02:15.4]} 12. d4 {[%clk 0:02:18.7]}
12... Bd7 {[%clk 0:02:03.1]} 13. Bg5 {[%clk 0:02:11.8]} 13... Qf7 {[%clk
0:01:59.8]} 14. Bh4 {[%clk 0:02:08.2]} 14... h6 {[%clk 0:01:45.4]} 15. Re1
{[%clk 0:02:05.7]} 15... Rae8 {[%clk 0:01:39.8]} 16. Bg3 {[%clk 0:02:03.4]}
16... Bxg3 {[%clk 0:01:29.3]} 17. hxg3 {[%clk 0:02:04.3]} 17... Qf6 {[%clk
0:01:24.4]} 18. Qd2 {[%clk 0:02:01.6]} 18... cxd4 {[%clk 0:01:04.1]} 19. cxd4
{[%clk 0:02:01.4]} 19... Re7 {[%clk 0:00:58.1]} 20. Re3 {[%clk 0:01:59.6]} 20...
Be8 {[%clk 0:00:57]} 21. Rae1 {[%clk 0:01:55.3]} 21... Bg6 {[%clk 0:00:56.5]}
22. Bxg6 {[%clk 0:01:54.6]} 22... Qxg6 {[%clk 0:00:56.6]} 23. b4 {[%clk
0:01:54.8]} 23... a6 {[%clk 0:00:53.9]} 24. a4 {[%clk 0:01:55]} 24... a5 {[%clk
0:00:21.4]} 25. b5 {[%clk 0:01:54.3]} 25... Nb4 {[%clk 0:00:21.5]} 26. Rc3
{[%clk 0:01:46.7]} 26... Qf5 {[%clk 0:00:17.8]} 27. Ne5 {[%clk 0:01:44.7]} 27...
Ree8 {[%clk 0:00:12.1]} 28. Rc7 {[%clk 0:01:24.9]} 28... Rc8 {[%clk 0:00:11.7]}
29. Rec1 {[%clk 0:01:22.5]} 29... Rxc7 {[%clk 0:00:06.1]} 30. Rxc7 {[%clk
0:01:23.4]} 30... Qb1+ {[%clk 0:00:06]} 31. Kh2 {[%clk 0:01:23.1]} 31... Qa1
{[%clk 0:00:04.9]} 32. Ng4 {[%clk 0:01:15]} 32... Qd1 {[%clk 0:00:02.2]} 33.
Qxd1 {[%clk 0:01:14.8]} 1-0

[Event "Early-Titled-Tuesday-Blitz-April-23-2024"]
[Site "Chess.com"]
[Date "2024.04.23"]
[Round "6"]
[White "jinbojinbo"]
[Black "vladislavkovalev"]
[Result "0-1"]
[WhiteElo "2649"]
[BlackElo "2863"]
[TimeControl "180+1"]
[EndTime "9:07:25 PDT"]
[Termination "vladislavkovalev won by resignation"]

1. c4 {[%clk 0:03:00.9]} 1... g6 {[%clk 0:02:57.8]} 2. Nc3 {[%clk 0:03:00.5]}
2... Bg7 {[%clk 0:02:58.5]} 3. d4 {[%clk 0:03:00.6]} 3... d6 {[%clk 0:02:59]} 4.
e4 {[%clk 0:03:00.3]} 4... e5 {[%clk 0:02:59.2]} 5. Be3 {[%clk 0:02:49.8]} 5...
Nc6 {[%clk 0:02:45.8]} 6. Nge2 {[%clk 0:02:41.2]} 6... exd4 {[%clk 0:02:43.9]}
7. Nxd4 {[%clk 0:02:40.6]} 7... Nge7 {[%clk 0:02:44.1]} 8. Be2 {[%clk
0:02:36.6]} 8... O-O {[%clk 0:02:42.8]} 9. O-O {[%clk 0:02:36.3]} 9... f5 {[%clk
0:02:39.5]} 10. Nxc6 {[%clk 0:02:26.7]} 10... bxc6 {[%clk 0:02:34.1]} 11. Bd4
{[%clk 0:02:24.5]} 11... Bxd4 {[%clk 0:02:30.2]} 12. Qxd4 {[%clk 0:02:24.1]}
12... c5 {[%clk 0:02:30.9]} 13. Qd1 {[%clk 0:02:17.4]} 13... Rb8 {[%clk
0:02:25.4]} 14. b3 {[%clk 0:02:16.3]} 14... f4 {[%clk 0:02:20.7]} 15. Bg4 {[%clk
0:02:15.5]} 15... Bxg4 {[%clk 0:02:14.1]} 16. Qxg4 {[%clk 0:02:14.9]} 16... Nc6
{[%clk 0:02:14.7]} 17. f3 {[%clk 0:02:05.2]} 17... Qf6 {[%clk 0:02:01.9]} 18.
Nd5 {[%clk 0:02:03.9]} 18... Qf7 {[%clk 0:02:02.6]} 19. Rad1 {[%clk 0:01:52.8]}
19... Rbe8 {[%clk 0:02:02.1]} 20. Qh4 {[%clk 0:01:47.4]} 20... Kh8 {[%clk
0:01:50.3]} 21. Kh1 {[%clk 0:01:40.8]} 21... Re5 {[%clk 0:01:41.3]} 22. Qe1
{[%clk 0:01:39.9]} 22... g5 {[%clk 0:01:41.6]} 23. Qc3 {[%clk 0:01:34]} 23...
Qg7 {[%clk 0:01:37.6]} 24. g4 {[%clk 0:01:17.3]} 24... fxg3 {[%clk 0:01:29.1]}
25. hxg3 {[%clk 0:01:18.2]} 25... Nd4 {[%clk 0:01:29.9]} 26. Kg2 {[%clk
0:01:11.4]} 26... g4 {[%clk 0:01:25.8]} 27. f4 {[%clk 0:01:07.6]} 27... Rxe4
{[%clk 0:01:24.9]} 28. Rde1 {[%clk 0:01:01.9]} 28... Rfe8 {[%clk 0:01:17.8]} 29.
Rxe4 {[%clk 0:00:39.7]} 29... Rxe4 {[%clk 0:01:18.7]} 30. Qd3 {[%clk 0:00:37]}
30... Re2+ {[%clk 0:01:17]} 31. Rf2 {[%clk 0:00:36.8]} 31... Re8 {[%clk
0:01:17.8]} 32. f5 {[%clk 0:00:34.6]} 32... Qh6 {[%clk 0:01:10.2]} 33. Nf4
{[%clk 0:00:34.3]} 33... Re5 {[%clk 0:01:09]} 34. Qd1 {[%clk 0:00:21.4]} 34...
Nxf5 {[%clk 0:01:06.9]} 35. Nd5 {[%clk 0:00:15.7]} 35... Qh3+ {[%clk 0:01:05.9]}
0-1

[Event "Early-Titled-Tuesday-Blitz-April-23-2024"]
[Site "Chess.com"]
[Date "2024.04.23"]
[Round "6"]
[White "viktorgen2021"]
[Black "KogotBobra17"]
[Result "0-1"]
[WhiteElo "2475"]
[BlackElo "2763"]
[TimeControl "180+1"]
[EndTime "9:07:31 PDT"]
[Termination "KogotBobra17 won by resignation"]

1. d4 {[%clk 0:02:59.2]} 1... Nf6 {[%clk 0:02:52]} 2. Nf3 {[%clk 0:02:59.2]}
2... d5 {[%clk 0:02:52]} 3. g3 {[%clk 0:02:59.6]} 3... b5 {[%clk 0:02:45]} 4.
Bg2 {[%clk 0:02:58.4]} 4... Bb7 {[%clk 0:02:45.2]} 5. O-O {[%clk 0:02:58.4]}
5... e6 {[%clk 0:02:45.9]} 6. b3 {[%clk 0:02:55.1]} 6... Be7 {[%clk 0:02:45.8]}
7. c4 {[%clk 0:02:54.5]} 7... bxc4 {[%clk 0:02:43.8]} 8. bxc4 {[%clk 0:02:54.7]}
8... dxc4 {[%clk 0:02:43.2]} 9. Qa4+ {[%clk 0:02:54.3]} 9... Nbd7 {[%clk
0:02:43.5]} 10. Ne5 {[%clk 0:02:44.4]} 10... Nd5 {[%clk 0:02:14]} 11. Nc6 {[%clk
0:02:33.6]} 11... Bxc6 {[%clk 0:02:04]} 12. Qxc6 {[%clk 0:02:34.5]} 12... O-O
{[%clk 0:02:04.9]} 13. Qxc4 {[%clk 0:02:33.5]} 13... c5 {[%clk 0:02:02.7]} 14.
dxc5 {[%clk 0:02:28.7]} 14... Bf6 {[%clk 0:02:01.5]} 15. e4 {[%clk 0:02:03]}
15... N5b6 {[%clk 0:01:39]} 16. cxb6 {[%clk 0:01:47.2]} 16... Nxb6 {[%clk
0:01:39.9]} 17. Qe2 {[%clk 0:01:38.2]} 17... Bxa1 {[%clk 0:01:39.8]} 18. Rd1
{[%clk 0:01:36.5]} 18... Qc7 {[%clk 0:01:31.8]} 19. Ba3 {[%clk 0:01:26.2]} 19...
Rfd8 {[%clk 0:01:31.5]} 20. Rc1 {[%clk 0:01:26.2]} 20... Qe5 {[%clk 0:01:25.4]}
21. Nd2 {[%clk 0:01:20.1]} 21... Rac8 {[%clk 0:01:17.9]} 22. Nf3 {[%clk
0:01:12.3]} 22... Rxc1+ {[%clk 0:01:15.6]} 23. Bxc1 {[%clk 0:01:13.2]} 23... Qc3
{[%clk 0:01:04.9]} 24. Bg5 {[%clk 0:01:02.5]} 24... Rc8 {[%clk 0:00:54.6]} 25.
h4 {[%clk 0:00:59.8]} 25... h6 {[%clk 0:00:53.8]} 26. Bf4 {[%clk 0:00:57.7]}
26... Qc2 {[%clk 0:00:51]} 27. Qa6 {[%clk 0:00:55.4]} 27... Qa4 {[%clk
0:00:44.3]} 28. Qb7 {[%clk 0:00:44.1]} 28... Qxa2 {[%clk 0:00:41.4]} 29. Be5
{[%clk 0:00:23.8]} 29... Bxe5 {[%clk 0:00:39.9]} 30. Nxe5 {[%clk 0:00:24.7]}
30... Qa1+ {[%clk 0:00:40.4]} 0-1

[Event "Early-Titled-Tuesday-Blitz-April-23-2024"]
[Site "Chess.com"]
[Date "2024.04.23"]
[Round "6"]
[White "Cipy77"]
[Black "campochess"]
[Result "0-1"]
[WhiteElo "2552"]
[BlackElo "2158"]
[TimeControl "180+1"]
[EndTime "9:07:34 PDT"]
[Termination "campochess won by resignation"]

1. a3 {[%clk 0:03:00.9]} 1... d5 {[%clk 0:02:56.3]} 2. c4 {[%clk 0:02:59.1]}
2... e6 {[%clk 0:02:55.7]} 3. e3 {[%clk 0:02:59.1]} 3... Nf6 {[%clk 0:02:55.5]}
4. b3 {[%clk 0:02:59.2]} 4... c6 {[%clk 0:02:55.6]} 5. Bb2 {[%clk 0:02:59.8]}
5... Be7 {[%clk 0:02:55.6]} 6. Nf3 {[%clk 0:03:00.4]} 6... Nbd7 {[%clk
0:02:55.6]} 7. cxd5 {[%clk 0:03:00.8]} 7... exd5 {[%clk 0:02:52]} 8. d3 {[%clk
0:03:01.4]} 8... O-O {[%clk 0:02:51.6]} 9. Nbd2 {[%clk 0:03:02.3]} 9... Re8
{[%clk 0:02:50.8]} 10. Be2 {[%clk 0:03:03.2]} 10... Nf8 {[%clk 0:02:50.5]} 11.
O-O {[%clk 0:03:03.9]} 11... Ng6 {[%clk 0:02:46.1]} 12. Re1 {[%clk 0:03:03.7]}
12... Bd6 {[%clk 0:02:45.3]} 13. Bf1 {[%clk 0:03:03.6]} 13... Qc7 {[%clk
0:02:41.3]} 14. g3 {[%clk 0:03:04]} 14... Ne5 {[%clk 0:02:39.9]} 15. Nxe5 {[%clk
0:03:03.3]} 15... Bxe5 {[%clk 0:02:39.5]} 16. Bxe5 {[%clk 0:03:04]} 16... Qxe5
{[%clk 0:02:38.6]} 17. d4 {[%clk 0:03:02.8]} 17... Qe7 {[%clk 0:02:26.7]} 18.
Bg2 {[%clk 0:03:00.6]} 18... Bf5 {[%clk 0:02:26.1]} 19. b4 {[%clk 0:02:54.5]}
19... a5 {[%clk 0:02:24.9]} 20. Qb3 {[%clk 0:02:54.7]} 20... axb4 {[%clk
0:02:24.5]} 21. axb4 {[%clk 0:02:53.9]} 21... Qd7 {[%clk 0:02:19.8]} 22. Nf3
{[%clk 0:02:51.9]} 22... Qd6 {[%clk 0:02:11.5]} 23. Ne5 {[%clk 0:02:51.2]} 23...
Ne4 {[%clk 0:02:03.5]} 24. h3 {[%clk 0:02:48.7]} 24... f6 {[%clk 0:02:02.9]} 25.
Nd3 {[%clk 0:02:47.8]} 25... Qd7 {[%clk 0:01:55.4]} 26. Nc5 {[%clk 0:02:44.6]}
26... Qc7 {[%clk 0:01:44]} 27. Rxa8 {[%clk 0:02:14.4]} 27... Rxa8 {[%clk
0:01:41.9]} 28. Nxe4 {[%clk 0:02:11.3]} 28... Kh8 {[%clk 0:01:32.6]} 29. Nc5
{[%clk 0:02:10.6]} 29... h5 {[%clk 0:01:29.4]} 30. Nd3 {[%clk 0:02:09.9]} 30...
h4 {[%clk 0:01:23.7]} 31. g4 {[%clk 0:02:10]} 31... Bg6 {[%clk 0:01:22.6]} 32.
Nf4 {[%clk 0:02:09.2]} 32... Bf7 {[%clk 0:01:22.6]} 33. b5 {[%clk 0:02:09.8]}
33... Qb6 {[%clk 0:01:20.8]} 34. Rb1 {[%clk 0:02:07]} 34... g5 {[%clk
0:01:07.7]} 35. Nd3 {[%clk 0:02:06.2]} 35... Bg6 {[%clk 0:01:05.9]} 36. bxc6
{[%clk 0:02:05.2]} 36... Qxb3 {[%clk 0:01:04]} 37. Rxb3 {[%clk 0:02:06.1]} 37...
bxc6 {[%clk 0:01:03.7]} 38. Nc5 {[%clk 0:02:04.5]} 38... Ra1+ {[%clk 0:00:58.5]}
39. Bf1 {[%clk 0:02:04.8]} 39... f5 {[%clk 0:00:55.4]} 40. gxf5 {[%clk
0:02:04.1]} 40... Bxf5 {[%clk 0:00:54.8]} 41. Kg2 {[%clk 0:02:04.6]} 41... Bxh3+
{[%clk 0:00:51.1]} 42. Kxh3 {[%clk 0:02:04.1]} 42... Rxf1 {[%clk 0:00:51.1]} 43.
Rb8+ {[%clk 0:02:03.6]} 43... Kh7 {[%clk 0:00:50.4]} 44. Rb7+ {[%clk 0:02:03.6]}
44... Kg6 {[%clk 0:00:50.2]} 45. Rc7 {[%clk 0:02:03.4]} 45... Rxf2 {[%clk
0:00:47.2]} 46. Rxc6+ {[%clk 0:02:03.9]} 46... Kh5 {[%clk 0:00:47.1]} 47. Rh6+
{[%clk 0:01:10.8]} 47... Kxh6 {[%clk 0:00:44.2]} 48. Nd3 {[%clk 0:01:11.7]}
48... Re2 {[%clk 0:00:41.1]} 49. Ne5 {[%clk 0:01:08.2]} 49... Rxe3+ {[%clk
0:00:38.2]} 50. Kg2 {[%clk 0:01:08.2]} 50... Rxe5 {[%clk 0:00:37.8]} 51. dxe5
{[%clk 0:01:07.8]} 51... Kg6 {[%clk 0:00:37.7]} 52. Kf3 {[%clk 0:01:08.3]} 52...
Kf5 {[%clk 0:00:37.9]} 53. Ke3 {[%clk 0:01:09.2]} 53... Kxe5 {[%clk 0:00:37.8]}
0-1